bitfinex-derivatives/quotes_SOLF0:USTF0_20241227
["timestamp","ask_amount","ask_price","bid_price","bid_amount"]
[1735266386525,8.85642853,189.76,189.71,2.6396]
[1735266388628,2.639,189.76,189.71,2.6396]
[1735266390531,2.6387,189.79,189.73,2.6394]
[1735266390826,6.21742853,189.81,189.73,6.21742853]
[1735266391022,8.85582853,189.81,189.76,2.6389]
[1735266391226,6.21742853,189.81,189.76,2.6389]
[1735266391421,1.5762,189.82,189.76,2.6389]
[1735266391625,7.79362853,189.82,189.76,2.6389]
[1735266391823,2.6384,189.81,189.76,2.6389]
[1735266393929,2.6385,189.8,189.76,2.6389]
[1735266394524,2.6385,189.8,189.75,6.21742853]
[1735266394728,2.6385,189.8,189.75,8.85652853]
[1735266396525,2.6385,189.8,189.76,2.639]
[1735266396726,10.43192853,189.82,189.75,6.21742853]
[1735266396923,7.79362853,189.82,189.75,6.21742853]
[1735266397223,7.79362853,189.82,189.76,2.639]
[1735266398128,2.6384,189.81,189.76,2.639]
[1735266399229,2.6384,189.8,189.76,2.639]
[1735266400933,4.2145,189.82,189.77,2.6387]
[1735266403537,1.5762,189.82,189.77,2.6387]
[1735266403732,2.6383,189.81,189.77,2.6387]
[1735266413043,2.6383,189.81,189.77,8.85612853]
[1735266413341,2.638,189.83,189.78,2.6386]
[1735266415346,2.638,189.83,189.79,2.6385]
[1735266417448,2.6383,189.82,189.78,2.6386]
[1735266423450,2.6383,189.82,189.77,6.21742853]
[1735266423651,2.6383,189.82,189.79,2.6386]
[1735266426255,74.80453633,189.84,189.8,2.6384]
[1735266426445,72.16663633,189.84,189.77,6.21742853]
[1735266427352,2.6381,189.83,189.78,2.6386]
[1735266430755,2.6381,189.83,189.79,2.6384]
[1735266430954,2.6381,189.83,189.79,8.85582853]
[1735266431154,2.6381,189.83,189.79,12.03582853]
[1735266431356,3.69922511,189.87,189.81,6.21742853]
[1735266431656,3.69922511,189.87,189.83,6.21742853]
[1735266432049,6.33682511,189.87,189.83,6.21742853]
[1735266436552,6.33682511,189.87,189.83,8.85542853]
[1735266437151,6.33682511,189.87,189.83,12.03542853]
[1735266437652,2.6376,189.87,189.83,12.03542853]
[1735266438151,2.6376,189.87,189.83,5.818]
[1735266440759,2.6376,189.86,189.83,3.18]
[1735266442355,2.6378,189.85,189.83,3.18]
[1735266442862,2.6378,189.85,189.81,2.6383]
[1735266443158,2.6381,189.83,189.8,3.18]
[1735266447163,6.21742853,189.86,189.8,5.8184]
[1735266447862,6.21742853,189.86,189.8,2.6384]
[1735266448560,2.638,189.84,189.8,2.6384]
[1735266448960,6.21742853,189.86,189.79,3.18]
[1735266449164,2.638,189.84,189.79,5.8185]
[1735266449560,2.6377,189.86,189.81,2.6382]
[1735266449760,72.14609703,189.89,189.81,6.21742853]
[1735266449960,78.36352556,189.89,189.81,6.21742853]
[1735266451267,74.78339703,189.89,189.85,2.6377]
[1735266451470,72.14609703,189.89,189.85,2.6377]
[1735266452473,2.6373,189.88,189.85,2.6377]
[1735266454274,2.6373,189.88,189.84,2.6379]
[1735266457976,2.6374,189.88,189.84,2.6379]
[1735266467983,72.14609703,189.89,189.86,6.21742853]
[1735266468486,1.6223,189.95,189.88,6.21742853]
[1735266468686,1.6223,189.95,189.88,9.39742853]
[1735266469587,2.6368,189.92,189.88,12.03472853]
[1735266471579,2.6368,189.92,189.88,6.21742853]
[1735266471784,6.21742853,189.92,189.85,3.18]
[1735266473486,6.21742853,189.92,189.85,5.8177]
[1735266474486,2.6372,189.89,189.85,5.8177]
[1735266478491,2.6373,189.88,189.85,5.8177]
[1735266479695,2.6375,189.87,189.85,3.18]
[1735266480496,6.21742853,189.92,189.85,3.18]
[1735266480497,2.6373,189.88,189.85,3.18]
[1735266481189,1.6223,189.95,189.85,3.18]
[1735266481390,7.83972853,189.95,189.86,6.21742853]
[1735266482499,2.637,189.91,189.87,2.6374]
[1735266486695,7.83972853,189.95,189.86,8.85502853]
[1735266487500,2.637,189.91,189.86,8.85502853]
[1735266489091,2.6371,189.9,189.86,8.85502853]
[1735266490403,6.21742853,189.93,189.86,6.21742853]
[1735266495809,6.21742853,189.93,189.85,3.18]
[1735266495810,6.21742853,189.91,189.8,7.31875293]
[1735266496005,6.21742853,189.89,189.83,6.21742853]
[1735266496208,6.21742853,189.89,189.83,91.80624685]
[1735266499809,6.21742853,189.87,189.83,91.80624685]
[1735266500203,6.21742853,189.87,189.78,3.167]
[1735266500406,6.21742853,189.87,189.81,3.18]
[1735266502714,6.21742853,189.87,189.79,6.21742853]
[1735266503712,2.6378,189.85,189.79,6.21742853]
[1735266503910,6.21742853,189.87,189.79,6.21742853]
[1735266504410,2.6382,189.82,189.79,6.21742853]
[1735266504612,5.73229217,189.89,189.75,3.66862964]
[1735266504919,6.21742853,189.81,189.75,3.18]
[1735266506015,6.21742853,189.81,189.74,12.03672853]
[1735266507415,2.6386,189.79,189.74,12.03672853]
[1735266510522,2.639,189.76,189.74,6.21742853]
[1735266510722,6.21742853,189.79,189.73,3.1372]
[1735266511015,6.21742853,189.79,189.72,2.6394]
[1735266511016,8.85662853,189.75,189.68,3.2179]
[1735266511214,6.21742853,189.73,189.66,3.18]
[1735266511414,6.21742853,189.73,189.66,9.39742853]
[1735266511613,2.6399,189.7,189.66,9.39742853]
[1735266511814,2.6399,189.7,189.66,3.18]
[1735266512121,2.6399,189.7,189.66,9.39742853]
[1735266512821,6.21742853,189.73,189.66,6.21742853]
[1735266513021,6.21742853,189.71,189.65,95.22591613]
[1735266513220,2.6399,189.7,189.65,3.18]
[1735266513526,6.21742853,189.71,189.65,3.18]
[1735266514425,2.6402,189.68,189.65,3.18]
[1735266514623,6.21742853,189.71,189.62,5.8208]
[1735266514821,6.21742853,189.71,189.63,6.21742853]
[1735266515822,8.0631,189.78,189.62,3.18]
[1735266515823,6.21742853,189.69,189.62,3.18]
[1735266516023,6.21742853,189.69,189.61,9.39742853]
[1735266516220,2.6403,189.67,189.61,6.21742853]
[1735266516429,6.21742853,189.69,189.61,6.21742853]
[1735266516927,6.21742853,189.68,189.61,6.21742853]
[1735266517725,2.6406,189.64,189.61,6.21742853]
[1735266519926,2.6401,189.68,189.63,6.21742853]
[1735266520122,11.10052853,189.78,189.67,6.21742853]
[1735266520325,11.10052853,189.78,189.62,92.05063616]
[1735266520326,4.8831,189.78,189.71,6.21742853]
[1735266520527,2.6393,189.75,189.73,6.21742853]
[1735266520835,3.18,189.81,189.73,6.21742853]
[1735266521024,2.639,189.77,189.73,6.21742853]
[1735266521423,9.39742853,189.81,189.73,6.21742853]
[1735266521627,7.77102853,189.83,189.75,6.21742853]
[1735266522130,2.6387,189.78,189.73,5.8194]
[1735266522329,2.6387,189.78,189.73,12.03682853]
[1735266522627,2.6388,189.77,189.73,9.39742853]
[1735266522931,6.21742853,189.81,189.73,9.39742853]
[1735266523527,2.6389,189.77,189.73,9.39742853]
[1735266526734,6.21742853,189.81,189.73,9.39742853]
[1735266527032,6.21742853,189.81,189.75,6.21742853]
[1735266527631,1.5536,189.83,189.75,6.21742853]
[1735266527934,77.97878262,189.84,189.75,6.21742853]
[1735266529336,2.6383,189.81,189.76,2.6389]
[1735266530236,2.6383,189.81,189.77,6.21742853]
[1735266531536,2.6383,189.81,189.77,8.85622853]
[1735266532041,2.6386,189.79,189.77,6.21742853]
[1735266532333,2.6386,189.79,189.75,6.21742853]
[1735266533240,77.97878262,189.84,189.75,6.21742853]
[1735266533440,2.6384,189.8,189.75,8.85652853]
[1735266533643,77.97878262,189.84,189.77,6.21742853]
[1735266533835,2.6382,189.82,189.78,2.6387]
[1735266534035,71.76135409,189.84,189.79,6.21742853]
[1735266534542,2.6377,189.86,189.81,6.21742853]
[1735266535336,1.6645,189.95,189.83,6.21742853]
[1735266535536,1.6645,189.95,189.79,3.2138]
[1735266535537,6.21742853,189.94,189.85,6.21742853]
[1735266535734,6.21742853,189.94,189.87,6.21742853]
[1735266537036,78.52279084,189.97,189.87,6.21742853]
[1735266537243,6.21742853,189.96,189.87,6.21742853]
[1735266538145,2.6366,189.94,189.88,2.6373]
[1735266538947,2.6366,189.93,189.88,2.6373]
[1735266539145,73.71109084,189.97,189.89,8.85452853]
[1735266539349,79.92851937,189.97,189.89,8.85452853]
[1735266540548,2.6365,189.94,189.89,8.85452853]
[1735266541350,72.12369084,189.97,189.89,6.21742853]
[1735266541649,74.75989084,189.97,189.91,8.85422853]
[1735266541841,74.75989084,189.97,189.91,9.37742853]
[1735266541842,2.6362,189.97,189.91,9.37742853]
[1735266542047,2.6362,189.97,189.93,6.21742853]
[1735266543054,2.6362,189.96,189.93,6.21742853]
[1735266545944,6.21742853,190.01,189.93,6.21742853]
[1735266547456,2.6359,189.99,189.94,2.6364]
[1735266547857,2.6359,189.99,189.95,6.21742853]
[1735266548250,2.6359,189.99,189.95,8.85372853]
[1735266549250,69.1795457,190.03,189.97,6.21742853]
[1735266549457,69.1795457,190.03,189.99,6.21742853]
[1735266549758,2.6354,190.03,189.99,6.21742853]
[1735266550255,2.635,190.05,189.99,8.85312853]
[1735266550654,2.635,190.05,190.01,6.21742853]
[1735266552155,2.635,190.05,190.02,3.16]
[1735266552458,4.6981,190.15,190.03,6.21742853]
[1735266552661,7.06066669,190.14,190.05,6.21742853]
[1735266552955,69.14733384,190.14,190.07,6.21742853]
[1735266553162,69.14733384,190.14,190.09,6.21742853]
[1735266553658,6.21742853,190.18,190.09,6.21742853]
[1735266554258,3.16,190.23,190.13,6.21742853]
[1735266554455,0.84284024,190.22,190.13,6.21742853]
[1735266554656,6.21742853,190.21,190.13,6.21742853]
[1735266554853,2.6333,190.18,190.13,6.21742853]
[1735266556262,2.6333,190.17,190.12,3.16]
[1735266556966,2.6336,190.15,190.11,3.16]
[1735266557666,2.6334,190.17,190.11,3.16]
[1735266557860,69.12077085,190.22,190.11,3.16]
[1735266559565,2.6335,190.16,190.11,3.16]
[1735266560564,2.6329,190.2,190.15,2.6336]
[1735266560762,69.12077085,190.22,190.16,3.16]
[1735266561869,71.75347085,190.22,190.17,2.6333]
[1735266562065,2.6327,190.22,190.17,2.6333]
[1735266562262,4.7224,190.24,190.16,3.16]
[1735266562467,7.3548,190.24,190.18,2.6331]
[1735266562670,5.47661386,190.25,190.16,12.83139601]
[1735266563165,14.40109601,190.31,190.16,12.83139601]
[1735266563370,14.40109601,190.31,190.17,3.3011]
[1735266564465,2.6321,190.26,190.2,2.6329]
[1735266564666,2.6321,190.26,190.21,3.16]
[1735266565871,2.6322,190.25,190.21,3.16]
[1735266566263,14.40109601,190.31,190.21,3.16]
[1735266566960,9.67139601,190.31,190.21,3.16]
[1735266567268,111.55497131,190.38,190.23,9.67139601]
[1735266567571,2.6309,190.35,190.26,9.67139601]
[1735266567771,2.6309,190.35,190.27,3.16]
[1735266568966,111.55497131,190.38,190.26,9.67139601]
[1735266569172,4.8767,190.48,190.3,9.67139601]
[1735266569374,9.67139601,190.46,190.31,3.16]
[1735266569872,2.6299,190.42,190.34,2.6309]
[1735266570171,9.67139601,190.46,190.31,3.16]
[1735266571077,2.6302,190.4,190.33,2.631]
[1735266571371,2.6302,190.4,190.31,3.16]
[1735266571568,2.6302,190.4,190.33,9.67139601]
[1735266572473,2.6302,190.4,190.34,2.6309]
[1735266577471,2.6302,190.4,190.35,2.6308]
[1735266577674,2.6302,190.4,190.36,3.16]
[1735266579676,2.6308,190.35,190.27,12.86869601]
[1735266579880,1.5374,190.39,190.28,3.16]
[1735266580481,2.6307,190.36,190.28,3.16]
[1735266581284,2.6307,190.36,190.3,2.6315]
[1735266583479,1.5374,190.39,190.28,3.16]
[1735266583684,2.6309,190.34,190.28,3.16]
[1735266584584,2.6309,190.34,190.29,2.6316]
[1735266591894,2.6309,190.34,190.3,3.16]
[1735266592289,2.6309,190.34,190.32,6.17773903]
[1735266593086,2.6309,190.34,190.3,3.16]
[1735266593292,3.1159,190.38,190.31,6.17773903]
[1735266593884,2.6311,190.34,190.31,6.17773903]
[1735266596399,3.1159,190.38,190.32,3.16]
[1735266596699,6.17773903,190.37,190.32,3.16]
[1735266596892,2.631,190.33,190.32,3.16]
[1735266597692,2.631,190.33,190.3,6.17773903]
[1735266597890,2.631,190.33,190.31,3.16]
[1735266598801,2.6312,190.32,190.31,3.16]
[1735266599900,2.6311,190.33,190.31,3.16]
[1735266600097,9.29363903,190.38,190.31,3.16]
[1735266600299,9.29363903,190.38,190.31,9.33773903]
[1735266601193,9.29363903,190.38,190.31,3.16]
[1735266601394,2.6312,190.32,190.31,3.16]
[1735266602495,2.6311,190.33,190.31,3.16]
[1735266602895,75.0808782,190.38,190.31,9.33773903]
[1735266603096,2.6309,190.34,190.31,9.33773903]
[1735266604694,9.29363903,190.38,190.31,3.16]
[1735266605099,2.6312,190.33,190.31,3.16]
[1735266606904,2.6312,190.32,190.3,3.16]
[1735266607108,81.25861723,190.38,190.3,3.16]
[1735266607497,6.17773903,190.36,190.3,3.16]
[1735266607802,6.17773903,190.34,190.29,3.16]
[1735266608908,6.17773903,190.34,190.27,6.17773903]
[1735266609102,6.17773903,190.34,190.28,3.16]
[1735266611507,2.6314,190.31,190.28,3.16]
[1735266614012,133.73423895,190.38,190.29,6.17773903]
[1735266614200,133.73423895,190.38,190.33,6.17773903]
[1735266614406,130.61833895,190.38,190.34,3.16]
[1735266614608,73.75976174,190.37,190.34,3.16]
[1735266615703,2.6308,190.35,190.34,3.16]
[1735266617806,2.631,190.34,190.31,6.17773903]
[1735266618011,78.14271723,190.38,190.32,3.16]
[1735266618917,2.6312,190.33,190.31,9.33773903]
[1735266620217,2.6312,190.32,190.31,9.33773903]
[1735266621617,2.6314,190.31,190.3,3.16]
[1735266623412,58.65336075,190.33,190.3,3.16]
[1735266623620,87.97942046,190.35,190.3,3.16]
[1735266623621,2.6312,190.32,190.3,3.16]
[1735266625322,2.6311,190.33,190.3,3.16]
[1735266626021,61.28446075,190.33,190.3,3.16]
[1735266626622,2.6311,190.33,190.3,3.16]
[1735266626916,2.6311,190.33,190.29,2.6316]
[1735266627120,6.17773903,190.3,190.24,3.16]
[1735266627824,2.632,190.26,190.24,3.16]
[1735266628021,6.17773903,190.3,190.24,3.16]
[1735266628219,2.6319,190.27,190.24,3.16]
[1735266628419,2.6319,190.27,190.23,6.17773903]
[1735266629624,6.17773903,190.3,190.23,6.17773903]
[1735266629825,2.632,190.26,190.23,6.17773903]
[1735266630624,2.632,190.26,190.2,2.6327]
[1735266630829,6.17773903,190.28,190.21,9.75217603]
[1735266631438,1.5927,190.32,190.23,6.17773903]
[1735266631738,6.17773903,190.3,190.23,6.17773903]
[1735266632134,2.6319,190.27,190.23,6.17773903]
[1735266632634,1.5927,190.32,190.25,6.17773903]
[1735266632938,6.17773903,190.33,190.27,6.17773903]
[1735266633330,58.65336075,190.35,190.27,6.17773903]
[1735266633533,24.95166311,190.37,190.33,6.17773903]
[1735266634033,27.58216311,190.37,190.33,6.17773903]
[1735266634642,2.6305,190.37,190.33,6.17773903]
[1735266636841,6.17773903,190.37,190.32,3.16]
[1735266638342,6.17773903,190.37,190.3,3.16]
[1735266638542,2.6312,190.32,190.3,3.16]
[1735266639043,2.6311,190.33,190.3,3.16]
[1735266640445,2.6311,190.33,190.3,9.33773903]
[1735266641845,6.17773903,190.37,190.3,9.33773903]
[1735266643444,2.6312,190.32,190.3,3.16]
[1735266643649,16.75336232,190.37,190.3,3.16]
[1735266643840,24.53012574,190.37,190.3,3.16]
[1735266644042,2.6313,190.31,190.3,3.16]
[1735266644240,2.6313,190.31,190.28,6.17773903]
[1735266644650,2.6315,190.3,190.27,3.16]
[1735266644848,6.17773903,190.33,190.27,3.16]
[1735266646045,2.6313,190.32,190.27,3.16]
[1735266646244,6.17773903,190.33,190.27,3.16]
[1735266646647,2.6315,190.3,190.27,3.16]
[1735266648251,2.6313,190.32,190.27,5.7918]
[1735266648447,2.6313,190.32,190.27,3.16]
[1735266649253,2.6313,190.32,190.27,5.7919]
[1735266651150,2.631,190.33,190.28,8.80943903]
[1735266651755,4.92,190.36,190.29,2.6316]
[1735266651955,2.6309,190.34,190.29,2.6316]
[1735266652156,2.6309,190.34,190.29,8.80933903]
[1735266657154,2.631,190.33,190.29,8.80933903]
[1735266659359,2.631,190.33,190.29,2.6316]
[1735266660253,6.17773903,190.34,190.27,3.16]
[1735266660656,2.6314,190.31,190.27,3.16]
[1735266660863,15.4960601,190.36,190.28,6.17773903]
[1735266661161,11.09773903,190.36,190.28,6.17773903]
[1735266661360,2.6312,190.33,190.28,8.80943903]
[1735266661757,6.17773903,190.34,190.28,6.17773903]
[1735266662159,2.6313,190.32,190.28,6.17773903]
[1735266667259,11.09773903,190.36,190.28,6.17773903]
[1735266667564,6.17773903,190.34,190.26,3.16]
[1735266668567,2.6318,190.28,190.26,3.16]
[1735266668865,2.6318,190.28,190.25,6.17773903]
[1735266669167,2.6318,190.28,190.25,9.33773903]
[1735266669661,6.17773903,190.34,190.25,9.33773903]
[1735266669867,4.92,190.36,190.27,6.17773903]
[1735266670165,11.09773903,190.36,190.27,6.17773903]
[1735266671165,11.09773903,190.36,190.28,2.6317]
[1735266672469,2.6313,190.32,190.27,8.80953903]
[1735266672768,2.6313,190.32,190.28,3.16]
[1735266672967,2.6314,190.31,190.28,3.16]
[1735266673170,4.92,190.36,190.28,3.16]
[1735266673362,6.17773903,190.35,190.28,3.16]
[1735266674461,2.6313,190.32,190.28,3.16]
[1735266675669,6.17773903,190.35,190.28,5.7917]
[1735266675869,2.6311,190.33,190.28,5.7917]
[1735266676171,60.22746075,190.36,190.29,8.80923903]
[1735266676569,2.631,190.34,190.29,8.80923903]
[1735266677571,2.6312,190.32,190.28,5.7917]
[1735266677870,2.6312,190.32,190.29,6.17773903]
[1735266678374,60.22746075,190.36,190.31,6.17773903]
[1735266678562,58.65336075,190.36,190.33,6.17773903]
[1735266678872,58.65336075,190.36,190.33,9.33773903]
[1735266680374,71.96669941,190.38,190.33,9.33773903]
[1735266680576,2.6306,190.36,190.33,9.33773903]
[1735266683677,71.96669941,190.38,190.33,3.16]
[1735266683869,71.96669941,190.38,190.31,6.17773903]
[1735266684276,6.17773903,190.37,190.31,6.17773903]
[1735266684579,24.55902722,190.37,190.31,6.17773903]
[1735266684768,24.55897827,190.37,190.31,6.17773903]
[1735266685171,2.6311,190.33,190.31,6.17773903]
[1735266686078,6.17773903,190.35,190.29,6.17773903]
[1735266686477,6.17773903,190.35,190.28,3.14]
[1735266686670,2.6316,190.29,190.23,1.582]
[1735266686876,6.17773903,190.31,190.23,6.17773903]
[1735266687573,2.6322,190.25,190.23,6.17773903]
[1735266690779,2.6323,190.24,190.23,6.17773903]
[1735266692583,64.99796075,190.34,190.23,6.17773903]
[1735266692584,61.85796075,190.34,190.23,6.17773903]
[1735266692786,61.85796075,190.34,190.25,6.17773903]
[1735266692982,61.85796075,190.34,190.27,6.17773903]
[1735266693277,58.65336075,190.34,190.27,9.31773903]
[1735266693984,58.65336075,190.34,190.29,6.17773903]
[1735266694384,1.5982,190.36,190.29,6.17773903]
[1735266694893,2.6312,190.33,190.29,6.17773903]
[1735266695282,1.5982,190.36,190.29,6.17773903]
[1735266695485,2.6308,190.35,190.31,6.17773903]
[1735266695788,71.96669941,190.38,190.32,3.14]
[1735266697379,71.96669941,190.38,190.31,6.17773903]
[1735266697583,2.6307,190.36,190.32,3.14]
[1735266699484,71.96669941,190.38,190.32,3.14]
[1735266699690,2.6308,190.35,190.32,3.14]
[1735266701993,6.17773903,190.37,190.32,3.14]
[1735266702192,2.6307,190.36,190.32,3.14]
[1735266705795,2.6307,190.36,190.31,8.80903903]
[1735266705996,2.6307,190.36,190.31,11.94903903]
[1735266706197,2.6307,190.36,190.31,5.7713]
[1735266709999,6.17773903,190.37,190.31,5.7713]
[1735266710298,2.6308,190.35,190.31,5.7713]
[1735266713000,2.6308,190.35,190.31,2.6313]
[1735266713193,2.6308,190.35,190.31,5.7713]
[1735266715699,136.79779919,190.38,190.31,3.14]
[1735266716201,130.62006016,190.38,190.31,9.31773903]
[1735266716999,2.6306,190.37,190.33,2.631]
[1735266718501,71.96669941,190.38,190.31,9.31773903]
[1735266718701,2.6307,190.36,190.32,2.6311]
[1735266721904,2.6303,190.39,190.34,2.6309]
[1735266722905,2.6304,190.38,190.34,2.6309]
[1735266723511,6.17773903,190.41,190.31,9.31773903]
[1735266723699,6.17773903,190.37,190.3,90.74744153]
[1735266724006,6.17773903,190.35,190.31,3.14]
[1735266724207,2.6313,190.31,190.26,2.632]
[1735266724406,2.6313,190.31,190.26,5.772]
[1735266725412,2.6319,190.27,190.2,2.6328]
[1735266725609,6.17773903,190.29,190.22,6.17773903]
[1735266726007,6.17773903,190.29,190.21,3.14]
[1735266726411,2.632,190.26,190.21,5.7727]
[1735266726907,2.632,190.26,190.21,3.14]
[1735266729013,6.17773903,190.29,190.21,3.14]
[1735266729216,2.6322,190.25,190.2,8.81053903]
[1735266729418,2.6322,190.25,190.2,11.95053903]
[1735266731009,2.6317,190.28,190.22,2.6324]
[1735266731310,2.6317,190.28,190.22,6.17773903]
[1735266731516,66.36369978,190.3,190.22,6.17773903]
[1735266732019,66.36369978,190.3,190.23,2.6323]
[1735266732220,6.17773903,190.28,190.21,3.14]
[1735266732418,6.17773903,190.28,190.21,9.31773903]
[1735266733515,2.6319,190.27,190.22,2.6325]
[1735266734618,1.5326,190.3,190.21,9.31773903]
[1735266734619,7.71033903,190.3,190.21,9.31773903]
[1735266734819,2.6318,190.28,190.23,8.81013903]
[1735266738620,2.632,190.27,190.23,6.17773903]
[1735266739025,7.71033903,190.3,190.23,6.17773903]
[1735266739227,7.71033903,190.3,190.21,3.14]
[1735266739228,2.6322,190.25,190.21,3.14]
[1735266741728,2.6323,190.24,190.21,3.14]
[1735266743133,2.632,190.26,190.22,2.6325]
[1735266743631,1.5326,190.3,190.22,6.17773903]
[1735266743831,2.6319,190.28,190.24,2.6323]
[1735266744528,6.17773903,190.27,190.21,3.14]
[1735266745435,6.17773903,190.27,190.23,2.6324]
[1735266746235,8.80973903,190.27,190.22,2.6325]
[1735266746936,2.6321,190.26,190.22,2.6325]
[1735266748836,6.17773903,190.27,190.21,3.14]
[1735266749037,1.5326,190.3,190.2,3.14]
[1735266749038,6.17773903,190.25,190.2,3.14]
[1735266749539,6.17773903,190.25,190.19,3.14]
[1735266750436,2.6324,190.23,190.19,5.7729]
[1735266750738,6.17773903,190.23,190.19,3.14]
[1735266750937,2.6327,190.22,190.19,3.14]
[1735266751742,2.6327,190.22,190.18,3.14]
[1735266752440,2.6327,190.22,190.18,5.7731]
[1735266754539,2.6327,190.21,190.18,3.14]
[1735266756443,2.6329,190.2,190.18,3.14]
[1735266756944,2.6329,190.2,190.16,2.6334]
[1735266757141,2.6329,190.2,190.16,5.7734]
[1735266760048,6.17773903,190.21,190.15,88.93165818]
[1735266760343,6.17773903,190.19,190.15,88.93165818]
[1735266760744,2.6331,190.18,190.15,88.93165818]
[1735266761136,6.17773903,190.19,190.15,88.93165818]
[1735266761653,8.81073903,190.19,190.15,91.56515818]
[1735266763746,8.81073903,190.19,190.14,3.14]
[1735266764848,8.81073903,190.19,190.14,5.7736]
[1735266767244,3.1362,190.24,190.16,6.17773903]
[1735266767444,9.31393903,190.24,190.16,6.17773903]
[1735266767644,2.6328,190.21,190.16,2.6334]
[1735266767846,6.17773903,190.23,190.15,6.17773903]
[1735266768151,6.17773903,190.21,190.14,3.14]
[1735266768544,2.6332,190.18,190.14,3.14]
[1735266769646,2.6332,190.18,190.14,5.7737]
[1735266771050,6.17773903,190.21,190.13,6.17773903]
[1735266771352,2.6333,190.17,190.13,11.95153903]
[1735266771753,2.6332,190.18,190.14,2.6336]
[1735266772355,6.17773903,190.21,190.13,9.31773903]
[1735266772547,2.6333,190.17,190.13,5.7738]
[1735266776559,2.6331,190.18,190.13,3.14]
[1735266776760,2.6331,190.18,190.14,2.6337]
[1735266778465,2.6331,190.18,190.14,5.7737]
[1735266778659,2.6331,190.18,190.14,3.14]
[1735266781369,2.6327,190.21,190.16,2.6333]
[1735266781560,67.4905985,190.24,190.18,6.17773903]
[1735266781765,6.17773903,190.26,190.19,3.14]
[1735266782475,2.6324,190.24,190.19,3.14]
[1735266783366,2.6327,190.22,190.17,3.14]
[1735266783568,7.65505663,190.23,190.17,3.14]
[1735266784475,2.6327,190.21,190.17,3.14]
[1735266785574,2.6327,190.21,190.17,5.7732]
[1735266786577,7.65505663,190.23,190.18,2.6331]
[1735266786776,4.8984,190.29,190.18,7.65505663]
[1735266786777,7.65505663,190.25,190.18,7.65505663]
[1735266787475,2.6323,190.24,190.18,7.65505663]
[1735266788479,2.6323,190.24,190.2,2.6328]
[1735266788976,4.8984,190.29,190.22,2.6325]
[1735266789175,1.6226,190.29,190.22,10.79505663]
[1735266789372,9.27765663,190.29,190.22,10.79505663]
[1735266790082,3.3453,190.34,190.22,10.79505663]
[1735266790380,7.65505663,190.29,190.22,10.79505663]
[1735266790575,2.6319,190.27,190.23,2.6324]
[1735266790881,2.6319,190.27,190.22,10.79505663]
[1735266791572,2.6319,190.27,190.22,13.42755663]
[1735266792069,2.6317,190.29,190.24,7.65505663]
[1735266792275,7.65505663,190.31,190.24,7.65505663]
[1735266792875,2.6316,190.3,190.26,2.632]
[1735266793371,2.6313,190.31,190.26,7.65505663]
[1735266793577,1.6375,190.36,190.27,3.14]
[1735266793776,7.65505663,190.37,190.28,10.79505663]
[1735266793977,7.65505663,190.37,190.29,3.14]
[1735266794172,2.6306,190.36,190.31,2.6313]
[1735266794779,2.6308,190.35,190.3,10.28645663]
[1735266795583,7.65505663,190.37,190.3,10.28645663]
[1735266795882,7.65505663,190.37,190.31,2.6313]
[1735266796884,10.28565663,190.37,190.3,7.65505663]
[1735266797180,7.65505663,190.41,190.34,7.65505663]
[1735266797380,10.28515663,190.41,190.35,3.14]
[1735266797683,2.6301,190.41,190.36,7.65505663]
[1735266797883,2.6301,190.41,190.36,10.28555663]
[1735266798184,10.28515663,190.41,190.36,2.6305]
[1735266798476,7.65505663,190.41,190.35,3.14]
[1735266798782,2.6302,190.4,190.35,5.7707]
[1735266799882,7.65505663,190.39,190.33,2.6309]
[1735266800184,7.65505663,190.39,190.36,3.14]
[1735266800380,7.65505663,190.39,190.34,3.14]
[1735266801477,2.6305,190.37,190.33,3.14]
[1735266803488,7.65505663,190.39,190.33,3.14]
[1735266803688,10.28535663,190.39,190.33,5.771]